[Event "58th Akiba Rubinstein B 2022"]
[Site "Polanica-Zdroj"]
[Date "2022.08.17"]
[Round "5.12"]
[White "Turek, Michal"]
[Black "Penza, Denis"]
[Result "1/2-1/2"]
[ECO "C15"]
[WhiteElo "1681"]
[BlackElo "1836"]
[Annotator "NA RC"]
[PlyCount "141"]
[EventDate "2022.08.13"]
[EventCountry "POL"]
[SourceTitle "playchess.com"]
[Source "ChessBase"]
[SourceQuality "1"]
[TimeControl "40/5400+30:1800+30"]

1. e4 {[%emt 0:00:03]} e6 {[%emt 0:00:31]} 2. d4 {[%emt 0:00:06]} d5 {[%emt 0:00:05]} 3. Nc3 {[%emt 0:00:07]} Bb4 {[%emt 0:00:04]} 4. Nge2 {[%emt 0:00:06]} dxe4 {[%emt 0:00:46]} 5. a3 {[%emt 0:00:06]} Bxc3+ {[%emt 0:00:20]} 6. Nxc3 {[%emt 0:00:06]} Nc6 {[%emt 0:00:04]} 7. d5 {[%emt 0:00:07]} Nce7 {[%emt 0:00:34]} 8. dxe6 {[%emt 0:04:22]} Qxd1+ {[%emt 0:00:39]} 9. Kxd1 {[%emt 0:00:05]} Bxe6 {[%emt 0:00:11]} 10. Nxe4 {[%emt 0:00:08]} O-O-O+ {[%emt 0:00:34]} 11. Ke1 {[%emt 0:02:12]} h6 {[%emt 0:05:22]} 12. Bd3 {[%emt 0:01:17]} Nc6 {[%emt 0:02:20]} 13. f4 {[%emt 0:04:06]} Nge7 {[%emt 0:00:57]} 14. Kf2 {[%emt 0:01:32]} Rhe8 {[%emt 0:02:23]} 15. Re1 {[%emt 0:01:19]} Kb8 {[%emt 0:10:14]} 16. b4 {[%emt 0:03:44]} Nc8 {[%emt 0:10:18]} 17. Bb2 {[%emt 0:00:49]} f6 {[%emt 0:00:54]} 18. Ng3 {[%emt 0:05:23]} Nd6 {[%emt 0:08:16]} 19. Nh5 {[%emt 0:05:01]} Rd7 {[%emt 0:20:07]} 20. f5 {[%emt 0:08:39]} Bg8 {[%emt 0:04:05]} 21. Rxe8+ {[%emt 0:07:33]} Nxe8 {[%emt 0:00:02]} 22. Re1 {[%emt 0:02:30]} Re7 {[%emt 0:08:47]} 23. Rxe7 {[%emt 0:01:18]} Nxe7 {[%emt 0:00:00]} 24. g4 {[%emt 0:02:18]} Nd5 {[%emt 0:02:15]} 25. c4 {[%emt 0:04:11]} Nb6 {[%emt 0:00:37]} 26. c5 {[%emt 0:00:10]} Nd5 {[%emt 0:03:16]} 27. Kf3 {[%emt 0:03:27]} c6 {[%emt 0:01:23]} 28. Bc4 {[%emt 0:08:19]} Kc8 {[%emt 0:03:16]} 29. Ng3 {[%emt 0:05:48]} Kd7 {[%emt 0:03:37]} 30. Ne4 {[%emt 0:01:06]} Ne7 {[%emt 0:01:10]} 31. Bxg8 {[%emt 0:01:33]} Nxg8 {[%emt 0:00:01]} 32. h4 {[%emt 0:01:54]} Ne7 {[%emt 0:00:56]} 33. Ng3 {[%emt 0:01:42]} Nd5 {[%emt 0:02:09]} 34. Ke4 {[%emt 0:00:53]} a6 {[%emt 0:01:27]} 35. Nh5 {[%emt 0:01:58]} Ke7 {[%emt 0:01:48]} 36. Bc1 {[%emt 0:01:16]} Kf7 {[%emt 0:00:58]} 37. g5 {[%emt 0:04:30]} hxg5 {[%emt 0:01:13]} 38. hxg5 {[%emt 0:00:02]} fxg5 {[%emt 0:00:25]} 39. Bxg5 {[%emt 0:02:34]} g6 {[%emt 0:01:07]} 40. Ng3 {[%emt 0:00:00]} gxf5+ {[%emt 0:00:00]} 41. Nxf5 {[%emt 0:03:40]} Ke6 {[%emt 0:05:06]} 42. Nd4+ {[%emt 0:01:36]} Kd7 {[%emt 0:00:24]} 43. Kd3 {[%emt 0:04:47]} Nec7 {[%emt 0:00:22]} 44. Kc4 {[%emt 0:00:53]} Ne6 {[%emt 0:00:57]} 45. Nxe6 {[%emt 0:00:23]} Kxe6 {[%emt 0:00:37]} 46. a4 {[%emt 0:01:58]} Kf5 {[%emt 0:00:41]} 47. Bd2 {[%emt 0:00:26]} Ke4 {[%emt 0:00:39]} 48. b5 {[%emt 0:00:49]} axb5+ {[%emt 0:04:44]} 49. axb5 {[%emt 0:00:05]} Nc7 {[%emt 0:00:07]} 50. bxc6 {[%emt 0:00:31]} bxc6 {[%emt 0:00:07]} 51. Bc1 Na6 {[%emt 0:00:42]} 52. Bd2 {[%emt 0:01:25]} Nb8 {[%emt 0:00:18]} 53. Bc3 {[%emt 0:00:25]} Nd7 {[%emt 0:00:22]} 54. Bb2 {[%emt 0:01:03]} Ne5+ {[%emt 0:01:08]} 55. Bxe5 {[%emt 0:00:12]} Kxe5 {[%emt 0:00:02]} 56. Kc3 {[%emt 0:00:07]} Kd5 {[%emt 0:00:06]} 57. Kd3 {[%emt 0:00:04]} Kxc5 {[%emt 0:00:05]} 58. Kc3 {[%emt 0:00:04]} Kd5 {[%emt 0:00:05]} 59. Kd3 {[%emt 0:00:03]} c5 {[%emt 0:00:08]} 60. Kc3 {[%emt 0:00:06]} c4 {[%emt 0:00:06]} 61. Kc2 {[%emt 0:00:12]} Kd4 {[%emt 0:00:04]} 62. Kd2 {[%emt 0:00:04]} Kd5 {[%emt 0:00:07]} 63. Kc2 {[%emt 0:00:07]} Kc5 {[%emt 0:00:04]} 64. Kc3 {[%emt 0:00:05]} Kb5 {[%emt 0:00:04]} 65. Kc2 {[%emt 0:00:04]} Kb4 {[%emt 0:00:02]} 66. Kb2 {[%emt 0:00:04]} c3+ {[%emt 0:00:04]} 67. Kc1 {[%emt 0:00:08]} Kc4 {[%emt 0:00:07]} 68. Kc2 {[%emt 0:00:04]} Kd4 {[%emt 0:00:05]} 69. Kc1 {[%emt 0:00:04]} Kd3 {[%emt 0:00:03]} 70. Kd1 {[%emt 0:00:03]} c2+ {[%emt 0:00:04]} 71. Kc1 {[%emt 0:00:03]} 1/2-1/2

[Event "58th Akiba Rubinstein B 2022"]
[Site "Polanica-Zdroj"]
[Date "2022.08.17"]
[Round "5.12"]
[White "Ochenduszko, Bartosz"]
[Black "Kossowski, Pawel"]
[Result "*"]
[ECO "C10"]
[WhiteElo "1546"]
[BlackElo "1737"]
[Annotator "NA RC"]
[PlyCount "38"]
[EventDate "2022.08.13"]
[EventCountry "POL"]
[SourceTitle "playchess.com"]
[Source "ChessBase"]
[SourceQuality "1"]
[TimeControl "40/5400+30:1800+30"]

1. e4 {[%emt 0:00:03]} e6 {[%emt 0:00:31]} 2. d4 {[%emt 0:00:06]} d5 {[%emt 0:00:05]} 3. Nc3 {[%emt 0:00:07]} Bb4 {[%emt 0:00:04]} 4. Nge2 {[%emt 0:00:06]} dxe4 {[%emt 0:00:46]} 5. a3 {[%emt 0:00:06]} Bxc3+ {[%emt 0:00:20]} 6. Nxc3 {[%emt 0:00:06]} Nc6 {[%emt 0:00:04]} 7. d5 {[%emt 0:00:07]} Nce7 {[%emt 0:00:34]} 8. dxe6 {[%emt 0:04:22]} Qxd1+ {[%emt 0:00:39]} 9. Kxd1 {[%emt 0:00:05]} Bxe6 {[%emt 0:00:11]} 10. Nxe4 {[%emt 0:00:08]} O-O-O+ {[%emt 0:00:34]} 11. Ke1 {[%emt 0:02:12]} h6 {[%emt 0:05:22]} 12. Bd3 {[%emt 0:01:17]} Nc6 {[%emt 0:02:20]} 13. f4 {[%emt 0:04:06]} Nge7 {[%emt 0:00:57]} 14. Kf2 {[%emt 0:01:32]} Rhe8 {[%emt 0:02:23]} 15. Re1 {[%emt 0:01:19]} Kb8 {[%emt 0:10:14]} 16. b4 {[%emt 0:03:44]} Nc8 {[%emt 0:10:18]} 17. Bb2 {[%emt 0:00:49]} f6 {[%emt 0:00:54]} 18. Ng3 {[%emt 0:05:23]} Nd6 {[%emt 0:08:16]} 19. Nh5 {[%emt 0:05:01]} Rd7 {[%emt 0:20:07]} *

[Event "58th Akiba Rubinstein B 2022"]
[Site "Polanica-Zdroj"]
[Date "2022.08.17"]
[Round "5.13"]
[White "Jankowski, Aleksander"]
[Black "Wilk, Aleksander"]
[Result "*"]
[ECO "B32"]
[WhiteElo "1715"]
[BlackElo "1569"]
[Annotator "NA RC"]
[PlyCount "45"]
[EventDate "2022.08.13"]
[EventCountry "POL"]
[SourceTitle "playchess.com"]
[Source "ChessBase"]
[SourceQuality "1"]
[TimeControl "40/5400+30:1800+30"]

1. e4 {[%emt 0:00:10]} c5 {[%emt 0:00:04]} 2. Nf3 Nc6 {[%emt 0:00:00]} 3. d4 {[%emt 0:00:25]} cxd4 4. Nxd4 {[%emt 0:00:04]} Nf6 {[%emt 0:00:17]} 5. Nc3 {[%emt 0:00:07]} d6 {[%emt 0:01:38]} 6. Bg5 {[%emt 0:03:38]} e6 {[%emt 0:01:43]} 7. Qd2 {[%emt 0:01:15]} Be7 {[%emt 0:00:35]} 8. O-O-O {[%emt 0:02:36]} a6 {[%emt 0:01:38]} 9. Bxf6 {[%emt 0:03:26]} gxf6 {[%emt 0:00:29]} 10. f4 {[%emt 0:03:52]} Bd7 {[%emt 0:03:14]} 11. Be2 Rc8 12. Rhf1 {[%emt 0:03:58]} b5 {[%emt 0:02:48]} 13. Bh5 b4 {[%emt 0:01:29]} 14. Nce2 {[%emt 0:01:17]} Qa5 {[%emt 0:00:23]} 15. Kb1 {[%emt 0:00:26]} Qxh5 {[%emt 0:00:05]} 16. f5 {[%emt 0:03:34]} e5 {[%emt 0:05:09]} 17. Nb3 {[%emt 0:03:07]} a5 18. Nc5 Nd4 {[%emt 0:15:56]} 19. Nxd4 {[%emt 0:02:01]} Rxc5 {[%emt 0:00:24]} 20. Nf3 {[%emt 0:01:02]} Qg4 {[%emt 0:02:42]} 21. Qe1 {[%emt 0:05:31]} Bc6 {[%emt 0:09:03]} 22. Nd2 {[%emt 0:00:55]} Kd7 {[%emt 0:02:33]} 23. Nb3 {[%emt 0:00:45]} *

[Event "58th Akiba Rubinstein B 2022"]
[Site "Polanica-Zdroj"]
[Date "2022.08.17"]
[Round "5.13"]
[White "Blaszkiewicz, Jakub"]
[Black "Bednarczyk, Mateusz"]
[Result "0-1"]
[ECO "B63"]
[WhiteElo "1405"]
[BlackElo "1925"]
[Annotator "TA"]
[PlyCount "64"]
[EventDate "2022.08.13"]
[EventCountry "POL"]
[SourceTitle "playchess.com"]
[Source "ChessBase"]
[SourceQuality "1"]
[TimeControl "40/5400+30:1800+30"]

{[%evp 16,64,43,33,41,40,62,32,75,44,42,-104,-143,-242,-262,-400,-405,-424,-375,-395,-376,-497,-492,-458,-445,-516,-478,-537,-532,-510,-446,-465,-456,-510,-508,-707,-528,-827,-805,-939,-924,-945,-934,-1106,-1134,-1089,-1075,-1070,-1049,-923,-829]} 1. e4 {[%emt 0:00:10]} c5 {[%emt 0:00:04]} 2. Nf3 Nc6 {[%emt 0:00:00]} 3. d4 {[%emt 0:00:25]} cxd4 4. Nxd4 {[%emt 0:00:04]} Nf6 {[%emt 0:00:17]} 5. Nc3 {[%emt 0:00:07]} d6 {[%emt 0:01:13]} 6. Bg5 {[%emt 0:03:38]} e6 7. Qd2 {[%emt 0:01:15]} Be7 {[%emt 0:00:35]} 8. O-O-O a6 $1 {[%emt 0:01:38][%mdl 4] is currently scoring better than 8...0-0.} 9. Bxf6 {[%emt 0:03:26]} gxf6 {[%emt 0:00:29] B66: Sicilian: Richter-Rauzer: 7...a6 8 0-0-0 h6.} 10. f4 {[%emt 0:03:52]} Bd7 {[%emt 0:03:14]} 11. Be2 Rc8 {[#] White is slightly better.} 12. Rhf1 $146 {[%emt 0:03:58]} ({Predecessor:} 12. f5 Qa5 13. Bh5 Nb4 14. Kb1 Rxc3 15. Qxc3 Qxa2+ 16. Kc1 Bf8 17. Kd2 Bh6+ 18. Ke2 {1-0 (37) Schmid,L-Sumar,J Dubrovnik 1950}) 12... b5 {[%emt 0:02:48][%cal Bb7b5,Bb5b4][%mdl 32]} 13. Bh5 {[#]} (13. f5 $14 {stays ahead.}) 13... b4 $1 $17 {[%emt 0:01:29] Hoping for ...Nxd4.} 14. Nce2 {[%emt 0:01:17]} (14. Nb1 $17) 14... Qa5 $1 $19 {[%emt 0:00:23][%csl LRa2,LRh5]} 15. Kb1 {[%emt 0:00:26]} (15. Nxc6 $142 Bxc6 16. Ng3 Qxa2 17. Qxb4) 15... Qxh5 {[%emt 0:17:09]} 16. f5 {[%emt 0:07:23]} e5 {[%emt 0:05:09] Against Nf4} 17. Nb3 {[%emt 0:03:07]} a5 18. Nc5 Nd4 {[%emt 0:15:56] Black is clearly winning.} ({Not} 18... Qxh2 $2 19. Nb7 Nd4 20. Nxd4 exd4 21. Rh1 $19) 19. Nxd4 {[%emt 0:02:01]} Rxc5 {[%emt 0:00:24]} 20. Nf3 {[%emt 0:05:01][%cal Bd4f3,Bf3d2,Bd2b3][%mdl 32]} Qg4 21. Qe1 Bc6 {[%emt 0:09:03]} 22. Nd2 {[%emt 0:00:55]} Kd7 {[%emt 0:02:33]} 23. Nb3 {[%emt 0:02:04]} Rb5 {[%emt 0:05:51]} 24. Qe3 {[%emt 0:05:43]} Rc8 25. h3 Qxg2 {[%emt 0:23:46]} 26. Rg1 {[%emt 0:01:19]} Qxe4 27. Nc5+ {[%emt 0:05:32] [#]} Rxc5 $1 {[%emt 0:02:13]} 28. Qxc5 {[%emt 0:00:03]} Ba4 {[%emt 0:00:14]} 29. Qxa5 {[%emt 0:00:12]} Bxc2+ {[%emt 0:00:08]} 30. Ka1 {[%emt 0:00:10]} Bxd1 {[%emt 0:00:13]} 31. Rxd1 {[%emt 0:00:07]} Qc2 {[%emt 0:00:33][%cal Rc2d1]} 32. Rb1 {[%emt 0:00:03]} Qc5 {[%emt 0:02:22] White got outplayed after the opening.  Weighted Error Value: White=0.81/Black=0.17 (very precise)} 0-1

[Event "58th Akiba Rubinstein B 2022"]
[Site "Polanica-Zdroj"]
[Date "2022.08.17"]
[Round "5.14"]
[White "Kowalczyk, Wojciech"]
[Black "Mocko, Maciej"]
[Result "0-1"]
[ECO "B23"]
[WhiteElo "1835"]
[BlackElo "1525"]
[Annotator "NA RC"]
[PlyCount "80"]
[EventDate "2022.08.13"]
[EventCountry "POL"]
[SourceTitle "playchess.com"]
[Source "ChessBase"]
[SourceQuality "1"]
[TimeControl "40/5400+30:1800+30"]

1. e4 {[%emt 0:00:02]} c5 {[%emt 0:00:03]} 2. Nc3 {[%emt 0:00:04]} g6 {[%emt 0:00:04]} 3. f4 {[%emt 0:00:17]} Bg7 {[%emt 0:00:03]} 4. Nf3 {[%emt 0:00:07]} Nc6 {[%emt 0:00:04]} 5. Bb5 {[%emt 0:00:14]} Nd4 {[%emt 0:00:06]} 6. Bd3 {[%emt 0:07:24]} d6 {[%emt 0:01:31]} 7. Nxd4 {[%emt 0:00:31]} cxd4 {[%emt 0:00:20]} 8. Ne2 {[%emt 0:00:16]} Nf6 {[%emt 0:02:25]} 9. O-O {[%emt 0:01:47]} O-O {[%emt 0:00:53]} 10. Kh1 {[%emt 0:05:55]} e5 {[%emt 0:02:26]} 11. c3 {[%emt 0:08:23]} dxc3 {[%emt 0:05:02]} 12. bxc3 {[%emt 0:06:00]} d5 {[%emt 0:02:57]} 13. fxe5 {[%emt 0:28:49]} Nxe4 {[%emt 0:07:45]} 14. Qc2 {[%emt 0:10:58]} Bxe5 {[%emt 0:01:47]} 15. Bxe4 {[%emt 0:15:00]} Qh4 {[%emt 0:00:06]} 16. g3 {[%emt 0:00:06]} Qxe4+ {[%emt 0:00:15]} 17. Qxe4 {[%emt 0:00:05]} dxe4 {[%emt 0:00:02]} 18. Nf4 {[%emt 0:00:56]} Rd8 {[%emt 0:03:05]} 19. Re1 {[%emt 0:00:24]} Bxf4 {[%emt 0:00:34]} 20. gxf4 {[%emt 0:00:13]} f5 {[%emt 0:00:04]} 21. Rb1 {[%emt 0:07:10]} b6 {[%emt 0:00:31]} 22. Kg1 {[%emt 0:01:38]} Be6 {[%emt 0:02:49]} 23. Rb2 {[%emt 0:01:48]} Rd3 {[%emt 0:00:34]} 24. Re3 {[%emt 0:00:14]} Rad8 {[%emt 0:00:56]} 25. Kf2 {[%emt 0:00:13]} Bc4 {[%emt 0:05:46]} 26. Ke1 {[%emt 0:01:40]} Kg7 {[%emt 0:02:06]} 27. a4 {[%emt 0:00:31]} Kh6 {[%emt 0:01:52]} 28. Rb4 {[%emt 0:00:44]} Rxe3+ {[%emt 0:00:16]} 29. dxe3 {[%emt 0:00:07]} Bd3 {[%emt 0:00:09]} 30. Kf2 {[%emt 0:02:20]} Rd5 {[%emt 0:04:49]} 31. h4 {[%emt 0:00:59]} Bc2 {[%emt 0:02:04]} 32. Rd4 {[%emt 0:00:52]} Rxd4 {[%emt 0:00:36]} 33. cxd4 {[%emt 0:00:24]} Bxa4 {[%emt 0:00:04]} 34. Ba3 {[%emt 0:00:27]} Bc6 {[%emt 0:02:51]} 35. Ke2 {[%emt 0:00:42]} Kh5 {[%emt 0:00:31]} 36. Be7 {[%emt 0:00:06]} Kg4 {[%emt 0:00:10]} 37. Kd2 {[%emt 0:00:10]} Bd5 {[%emt 0:01:23]} 38. Bd8 {[%emt 0:00:37]} b5 {[%emt 0:01:00]} 39. Ba5 {[%emt 0:01:12]} Kxh4 {[%emt 0:00:28]} 40. Kc3 {[%emt 0:00:00]} Kg4 {[%emt 0:00:00]} 0-1

[Event "58th Akiba Rubinstein B 2022"]
[Site "Polanica-Zdroj"]
[Date "2022.08.17"]
[Round "5.14"]
[White "Rzenca, Jerzy"]
[Black "Bartlomowicz, Jakub"]
[Result "*"]
[ECO "B23"]
[WhiteElo "1668"]
[BlackElo "1922"]
[Annotator "NA RC"]
[PlyCount "28"]
[EventDate "2022.08.13"]
[EventCountry "POL"]
[SourceTitle "playchess.com"]
[Source "ChessBase"]
[SourceQuality "1"]
[TimeControl "40/5400+30:1800+30"]

1. e4 {[%emt 0:00:02]} c5 {[%emt 0:00:03]} 2. Nc3 {[%emt 0:00:04]} g6 {[%emt 0:00:04]} 3. f4 {[%emt 0:00:17]} Bg7 {[%emt 0:00:03]} 4. Nf3 {[%emt 0:00:07]} Nc6 {[%emt 0:00:04]} 5. Bb5 {[%emt 0:00:14]} Nd4 {[%emt 0:00:06]} 6. Bd3 {[%emt 0:07:24]} d6 {[%emt 0:01:31]} 7. Nxd4 {[%emt 0:00:31]} cxd4 {[%emt 0:00:20]} 8. Ne2 {[%emt 0:00:16]} Nf6 {[%emt 0:02:25]} 9. O-O {[%emt 0:01:47]} O-O {[%emt 0:00:53]} 10. Kh1 {[%emt 0:05:55]} e5 {[%emt 0:02:26]} 11. c3 {[%emt 0:08:23]} dxc3 {[%emt 0:05:02]} 12. bxc3 {[%emt 0:06:00]} d5 {[%emt 0:02:57]} 13. fxe5 {[%emt 0:28:49]} Nxe4 {[%emt 0:07:45]} 14. Qc2 {[%emt 0:10:58]} Bxe5 {[%emt 0:01:47]} *

[Event "58th Akiba Rubinstein B 2022"]
[Site "Polanica-Zdroj"]
[Date "2022.08.17"]
[Round "5.15"]
[White "Lewandrowski, Tomasz"]
[Black "Wesolek, Krzysztof"]
[Result "*"]
[WhiteElo "1902"]
[BlackElo "1747"]
[Annotator "NA RC"]
[PlyCount "28"]
[EventDate "2022.08.13"]
[EventCountry "POL"]
[SourceTitle "playchess.com"]
[Source "ChessBase"]
[SourceQuality "1"]
[TimeControl "40/5400+30:1800+30"]

1. e4 {[%emt 0:00:01]} e6 {[%emt 0:00:06]} 2. Nf3 {[%emt 0:00:14]} d5 {[%emt 0:00:04]} 3. Nc3 {[%emt 0:00:34]} Nf6 {[%emt 0:00:59]} 4. e5 {[%emt 0:00:25]} Nfd7 {[%emt 0:00:06]} 5. d4 {[%emt 0:00:12]} c5 {[%emt 0:00:12]} 6. dxc5 {[%emt 0:01:06]} Bxc5 {[%emt 0:01:27]} 7. Bd3 {[%emt 0:03:07]} Nc6 {[%emt 0:01:57]} 8. Bf4 {[%emt 0:01:00]} Qb6 {[%emt 0:07:32]} 9. O-O {[%emt 0:26:18]} Qxb2 {[%emt 0:05:00]} 10. Nb5 {[%emt 0:02:42]} Rb8 {[%emt 0:06:03]} 11. a3 {[%emt 0:10:54]} a6 {[%emt 0:04:37]} 12. Qd2 {[%emt 0:05:49]} axb5 {[%emt 0:14:54]} 13. Rfb1 {[%emt 0:01:02]} Bxa3 {[%emt 0:00:18]} 14. Rxb2 {[%emt 0:01:42]} Bxb2 {[%emt 0:00:03]} *

[Event "58th Akiba Rubinstein B 2022"]
[Site "Polanica-Zdroj"]
[Date "2022.08.17"]
[Round "5.15"]
[White "Hury, Tymoteusz"]
[Black "Latacz, Grzegorz"]
[Result "1-0"]
[ECO "C11"]
[WhiteElo "1679"]
[BlackElo "1449"]
[Annotator "NA RC"]
[PlyCount "117"]
[EventDate "2022.08.13"]
[EventCountry "POL"]
[SourceTitle "playchess.com"]
[Source "ChessBase"]
[SourceQuality "1"]
[TimeControl "40/5400+30:1800+30"]

1. e4 {[%emt 0:00:01]} e6 {[%emt 0:00:06]} 2. Nf3 {[%emt 0:00:14]} d5 {[%emt 0:00:04]} 3. Nc3 {[%emt 0:00:34]} Nf6 {[%emt 0:00:59]} 4. e5 {[%emt 0:00:25]} Nfd7 {[%emt 0:00:06]} 5. d4 {[%emt 0:00:12]} c5 {[%emt 0:00:12]} 6. dxc5 {[%emt 0:01:06]} Bxc5 {[%emt 0:01:27]} 7. Bd3 {[%emt 0:03:07]} Nc6 {[%emt 0:01:57]} 8. Bf4 {[%emt 0:01:00]} Qb6 {[%emt 0:07:32]} 9. O-O {[%emt 0:26:18]} Qxb2 {[%emt 0:05:00]} 10. Nb5 {[%emt 0:02:42]} Rb8 {[%emt 0:06:03]} 11. a3 {[%emt 0:10:54]} a6 {[%emt 0:04:37]} 12. Qd2 {[%emt 0:05:49]} axb5 {[%emt 0:14:54]} 13. Rfb1 {[%emt 0:01:02]} Bxa3 {[%emt 0:00:18]} 14. Rxb2 {[%emt 0:01:42]} Bxb2 {[%emt 0:00:03]} 15. Ra2 {[%emt 0:06:23]} Bxe5 {[%emt 0:02:13]} 16. Nxe5 {[%emt 0:06:57]} Ndxe5 {[%emt 0:01:57]} 17. Bxb5 {[%emt 0:05:18]} O-O {[%emt 0:00:51]} 18. h4 {[%emt 0:02:29]} f6 {[%emt 0:00:13]} 19. Bg3 {[%emt 0:02:37]} Bd7 {[%emt 0:01:34]} 20. c4 {[%emt 0:01:50]} d4 {[%emt 0:06:51]} 21. Bxc6 {[%emt 0:04:01]} Bxc6 {[%emt 0:00:49]} 22. Qxd4 {[%emt 0:00:56]} Rbd8 {[%emt 0:00:44]} 23. Qc3 {[%emt 0:04:22]} Nf7 {[%emt 0:08:44]} 24. Bc7 {[%emt 0:01:01]} Rd7 {[%emt 0:02:36]} 25. Bb6 {[%emt 0:00:41]} Ne5 {[%emt 0:03:25]} 26. Ra1 {[%emt 0:01:13]} Nf7 {[%emt 0:00:28]} 27. Qh3 {[%emt 0:01:52]} Re8 {[%emt 0:01:47]} 28. Qb3 {[%emt 0:02:30]} Be4 {[%emt 0:05:34]} 29. Re1 {[%emt 0:00:16]} Bc6 {[%emt 0:00:09]} 30. Qh3 {[%emt 0:01:23]} e5 {[%emt 0:00:39]} 31. Qb3 {[%emt 0:01:32]} Kh8 {[%emt 0:02:02]} 32. Ra1 {[%emt 0:00:54]} h6 {[%emt 0:01:21]} 33. Qc2 {[%emt 0:00:34]} Rc8 {[%emt 0:02:27]} 34. Qg6 {[%emt 0:00:20]} Nd6 {[%emt 0:02:16]} 35. Qg4 {[%emt 0:02:39]} Nf7 {[%emt 0:01:21]} 36. Qe6 {[%emt 0:00:45]} Rf8 {[%emt 0:01:38]} 37. g4 {[%emt 0:01:10]} Rg8 {[%emt 0:01:17]} 38. Kh2 {[%emt 0:01:37]} Rf8 {[%emt 0:00:22]} 39. Be3 {[%emt 0:00:52]} Rdd8 {[%emt 0:02:07]} 40. Rg1 {[%emt 0:00:00]} Rd7 {[%emt 0:00:00]} 41. c5 {[%emt 0:11:56]} Rdd8 {[%emt 0:05:46]} 42. Qf5 {[%emt 0:00:59]} Bd5 {[%emt 0:03:43]} 43. Qh5 {[%emt 0:02:32]} Kg8 {[%emt 0:05:49]} 44. Qg6 {[%emt 0:01:48]} Kh8 {[%emt 0:00:34]} 45. g5 {[%emt 0:02:55]} fxg5 {[%emt 0:02:42]} 46. hxg5 {[%emt 0:00:06]} Nxg5 {[%emt 0:03:39]} 47. Bxg5 {[%emt 0:02:14]} Rxf2+ {[%emt 0:00:32]} 48. Kh3 {[%emt 0:04:41]} Rf3+ {[%emt 0:00:27]} 49. Kh4 {[%emt 0:01:22]} hxg5+ {[%emt 0:01:20]} 50. Rxg5 {[%emt 0:00:18]} Rf4+ {[%emt 0:04:16]} 51. Kg3 {[%emt 0:00:23]} Rf7 {[%emt 0:00:34]} 52. Rh5+ {[%emt 0:00:55]} Kg8 {[%emt 0:00:08]} 53. Qh7+ {[%emt 0:00:17]} Kf8 {[%emt 0:00:10]} 54. Qh8+ {[%emt 0:01:52]} Ke7 {[%emt 0:00:05]} 55. Rxe5+ {[%emt 0:00:04]} Kf6 {[%emt 0:01:33]} 56. Qh5 {[%emt 0:00:28]} g6 {[%emt 0:01:10]} 57. Qg5+ {[%emt 0:00:10]} Kg7 {[%emt 0:00:13]} 58. Qxd8 {[%emt 0:00:09]} Rf3+ {[%emt 0:00:02]} 59. Kg4 {[%emt 0:00:24]} 1-0

[Event "58th Akiba Rubinstein B 2022"]
[Site "Polanica-Zdroj"]
[Date "2022.08.18"]
[Round "6.1"]
[White "Lukasiewicz, Anna"]
[Black "Zerebiec, Maurycy"]
[Result "1/2-1/2"]
[ECO "C07"]
[WhiteElo "1954"]
[BlackElo "1915"]
[Annotator "NA RC"]
[PlyCount "134"]
[EventDate "2022.08.13"]
[EventCountry "POL"]
[SourceTitle "playchess.com"]
[Source "ChessBase"]
[SourceQuality "1"]
[TimeControl "40/5400+30:1800+30"]

1. e4 {[%emt 0:00:02]} e6 {[%emt 0:00:13]} 2. d4 {[%emt 0:00:24]} d5 {[%emt 0:00:02]} 3. Nd2 {[%emt 0:00:09]} c5 {[%emt 0:00:10]} 4. Ngf3 {[%emt 0:00:38]} Be7 {[%emt 0:00:11]} 5. exd5 {[%emt 0:02:17]} exd5 {[%emt 0:00:03]} 6. dxc5 {[%emt 0:04:20]} Nc6 {[%emt 0:00:28]} 7. Nb3 {[%emt 0:06:09]} Nf6 {[%emt 0:00:23]} 8. Be2 {[%emt 0:03:59]} O-O {[%emt 0:01:49]} 9. O-O {[%emt 0:00:52]} Ne4 {[%emt 0:00:29]} 10. Be3 a5 {[%emt 0:08:10]} 11. a4 {[%emt 0:16:55]} f5 {[%emt 0:03:23]} 12. c4 {[%emt 0:13:27]} f4 {[%emt 0:03:25]} 13. Bc1 {[%emt 0:06:52]} dxc4 {[%emt 0:11:16]} 14. Bxc4+ {[%emt 0:00:10]} Kh8 {[%emt 0:00:04]} 15. Qxd8 {[%emt 0:01:44]} Bxd8 {[%emt 0:09:12]} 16. Re1 {[%emt 0:03:18]} Ng5 {[%emt 0:01:03]} 17. Bxf4 {[%emt 0:02:16]} Nxf3+ {[%emt 0:01:34]} 18. gxf3 {[%emt 0:00:06]} Bf6 {[%emt 0:05:01]} 19. Bd6 {[%emt 0:00:59]} Rd8 {[%emt 0:00:06]} 20. Re2 {[%emt 0:01:10]} Bf5 {[%emt 0:01:43]} 21. Rae1 {[%emt 0:00:58]} h5 {[%emt 0:01:27]} 22. Kg2 {[%emt 0:02:22]} Kh7 {[%emt 0:01:19]} 23. Bd5 {[%emt 0:01:32]} Rd7 {[%emt 0:01:48]} 24. Be4 {[%emt 0:08:43]} g6 {[%emt 0:01:48]} 25. Bxf5 {[%emt 0:00:49]} gxf5 {[%emt 0:00:03]} 26. f4 {[%emt 0:02:56]} Rg8+ {[%emt 0:01:31]} 27. Kf3 {[%emt 0:00:11]} Rg4 {[%emt 0:02:43]} 28. h3 {[%emt 0:03:40]} Rg6 {[%emt 0:00:38]} 29. Rd2 {[%emt 0:01:51]} Bg7 {[%emt 0:05:17]} 30. Red1 {[%emt 0:04:07]} Re6 {[%emt 0:00:41]} 31. Be5 {[%emt 0:07:43]} Rxd2 {[%emt 0:00:34]} 32. Rxd2 {[%emt 0:00:04]} Bxe5 {[%emt 0:00:18]} 33. fxe5 {[%emt 0:00:10]} Nxe5+ {[%emt 0:03:44]} 34. Kf4 {[%emt 0:00:55]} Nc6 {[%emt 0:02:01]} 35. Kxf5 {[%emt 0:02:47]} Re7 {[%emt 0:00:42]} 36. h4 {[%emt 0:01:29]} Kg7 {[%emt 0:02:17]} 37. f4 {[%emt 0:00:19]} Re3 {[%emt 0:00:39]} 38. Rd7+ Ne7+ {[%emt 0:00:03]} 39. Kg5 {[%emt 0:00:56]} Rg3+ {[%emt 0:00:56]} 40. Kxh5 {[%emt 0:00:00]} Kf8 {[%emt 0:00:00]} 41. Nd4 {[%emt 0:05:43]} Ng8 {[%emt 0:04:14]} 42. Ne6+ {[%emt 0:13:50]} Ke8 {[%emt 0:00:28]} 43. Rg7 {[%emt 0:00:58]} Nf6+ {[%emt 0:00:26]} 44. Kh6 {[%emt 0:00:17]} Ng8+ {[%emt 0:00:17]} 45. Kh7 {[%emt 0:01:54]} Nf6+ {[%emt 0:00:31]} 46. Kh8 {[%emt 0:00:25]} Rh3 {[%emt 0:00:51]} 47. Rc7 {[%emt 0:02:28]} Rxh4+ {[%emt 0:04:37]} 48. Kg7 {[%emt 0:00:10]} Nh5+ {[%emt 0:00:17]} 49. Kg6 {[%emt 0:00:37]} Nxf4+ {[%emt 0:00:02]} 50. Nxf4 {[%emt 0:02:35]} Rxf4 {[%emt 0:00:03]} 51. Rxb7 {[%emt 0:00:10]} Rxa4 {[%emt 0:00:18]} 52. Kf5 {[%emt 0:00:24]} Rd4 {[%emt 0:01:21]} 53. Ke5 {[%emt 0:00:44]} Rd2 {[%emt 0:00:18]} 54. b3 {[%emt 0:03:38]} Kd8 {[%emt 0:02:44]} 55. Rb5 {[%emt 0:00:59]} Kc7 {[%emt 0:09:39]} 56. Rxa5 {[%emt 0:00:47]} Rb2 {[%emt 0:00:01]} 57. Ra3 {[%emt 0:01:02]} Kc6 {[%emt 0:00:05]} 58. Kd4 {[%emt 0:00:37]} Kb5 {[%emt 0:00:13]} 59. Ra8 {[%emt 0:01:28]} Rd2+ {[%emt 0:00:13]} 60. Kc3 {[%emt 0:00:42]} Rh2 {[%emt 0:00:35]} 61. b4 {[%emt 0:00:38]} Rh3+ {[%emt 0:00:07]} 62. Kd4 {[%emt 0:00:31]} Rh4+ {[%emt 0:00:04]} 63. Kd5 {[%emt 0:00:37]} Rh5+ {[%emt 0:00:02]} 64. Kd6 {[%emt 0:00:35]} Rh6+ {[%emt 0:00:02]} 65. Kd7 {[%emt 0:00:35]} Rh7+ {[%emt 0:00:02]} 66. Ke6 {[%emt 0:00:13]} Rh6+ {[%emt 0:00:01]} 67. Kf7 {[%emt 0:01:19]} Kxb4 {[%emt 0:00:14]} 1/2-1/2